[Event "Reykjavik Chess Congress 2018"]
[Site "Reykjavik"]
[Date "2018.01.21"]
[Round "4"]
[White "Mai, Aron Thor"]
[Black "Halldorsson, Bragi"]
[Result "1/2-1/2"]
[ECO "B19"]
[WhiteElo "2066"]
[BlackElo "2082"]
[Annotator "NA"]
[PlyCount "82"]
[EventDate "2018.??.??"]
[EventType "swiss"]
[EventCountry "ISL"]
[SourceTitle "playchess.com"]
[Source "ChessBase"]
[SourceQuality "1"]
[TimeControl "40/5400+30:900+30"]

1. e4 {[%emt 0:00:00]} c6 {[%emt 0:01:41]} 2. d4 {[%emt 0:00:00]} d5 {[%emt 0:00:08]} 3. Nd2 {[%emt 0:00:00]} dxe4 {[%emt 0:00:21]} 4. Nxe4 {[%emt 0:00:00]} Bf5 {[%emt 0:00:12]} 5. Ng3 {[%emt 0:00:06]} Bg6 {[%emt 0:00:10]} 6. h4 {[%emt 0:00:07]} h6 {[%emt 0:00:12]} 7. Nf3 {[%emt 0:00:09]} Nd7 {[%emt 0:00:09]} 8. h5 {[%emt 0:00:07]} Bh7 {[%emt 0:00:11]} 9. Bd3 {[%emt 0:00:10]} Bxd3 {[%emt 0:00:12]} 10. Qxd3 {[%emt 0:00:04]} e6 {[%emt 0:00:13]} 11. Bd2 {[%emt 0:00:31]} Ngf6 {[%emt 0:00:10]} 12. O-O-O {[%emt 0:00:13]} Qc7 {[%emt 0:05:51]} 13. Ne4 {[%emt 0:00:39]} Nxe4 {[%emt 0:00:25]} 14. Qxe4 {[%emt 0:00:06]} Nf6 {[%emt 0:00:07]} 15. Qe2 {[%emt 0:00:35]} Bd6 {[%emt 0:00:38]} 16. g3 {[%emt 0:01:51]} O-O-O {[%emt 0:00:09]} 17. c4 {[%emt 0:00:42]} c5 {[%emt 0:00:13]} 18. Kb1 {[%emt 0:01:59] LiveBook: 32 Games B19: Classical Caro-Kann: 4...Bf5 main line} (18. Bc3 cxd4 19. Nxd4 a6 20. Kb1 Rd7 21. Nb3 Qc6 22. Rh4 Rhd8 23. Rc1 Kb8 24. c5 Bc7 25. a3 Rd5 26. Rc4 Rd3 27. Nd4 Qe4 28. Qxe4 Nxe4 {1-0 (51) Piorun,K (2586)-Czarnota,P (2523) Poland 2015}) 18... cxd4 {[%emt 0:06:02]} 19. Nxd4 {[%emt 0:00:31]} Bc5 {[%emt 0:00:17]} 20. Nb3 {[%emt 0:08:45]} Rd7 $146 {[%emt 0:03:59]} ({Predecessor:} 20... Qc6 21. Bc3 Rhg8 22. Rxd8+ Rxd8 23. Re1 Rg8 24. g4 Be7 25. f3 Nd7 {½-½ (33) Jankunas,V (1844)-Kalnins,T Palanga 2011}) 21. Rc1 {[%emt 0:27:21]} Rhd8 {[%emt 0:03:44]} 22. Bc3 {[%emt 0:02:09]} Qc6 {[%emt 0:02:51]} 23. Rh4 {[%emt 0:02:13]} Bb6 {[%emt 0:04:47]} 24. c5 {[%emt 0:28:50]} Bc7 {[%emt 0:00:42]} 25. Rc4 {[%emt 0:04:25]} Rd3 {[%emt 0:04:09]} 26. Ba5 $11 {[%emt 0:11:39]} Qf3 {[%emt 0:00:38]} 27. Qe1 {[%emt 0:01:57]} Rd1 {[%emt 0:02:51]} 28. Qb4 {[%emt 0:00:55]} Rxc1+ {[%emt 0:06:01]} 29. Nxc1 {[%emt 0:01:01]} Bxa5 {[%emt 0:05:57]} 30. Qxa5 {[%emt 0:00:42]} Rd1 {[%emt 0:06:02]} 31. c6 {[%emt 0:03:10]} Qf5+ {[%emt 0:06:42]} 32. Qxf5 {[%emt 0:00:07]} exf5 {[%emt 0:00:08]} 33. cxb7+ {[%emt 0:00:24]} Kxb7 {[%emt 0:00:16]} 34. Rc5 {[%emt 0:00:57]} Rd5 {[%emt 0:01:41]} 35. Rxd5 {[%emt 0:00:26]} Nxd5 {[%emt 0:00:02]} 36. Nd3 {[%emt 0:00:19]} Nf6 {[%emt 0:01:14]} 37. Ne5 {[%emt 0:01:24]} Nxh5 {[%emt 0:00:32]} 38. Nxf7 {[%emt 0:00:20]} Kc6 {[%emt 0:00:19]} 39. Kc2 {[%emt 0:01:16]} Kd5 {[%emt 0:01:48]} 40. Kd3 {[%emt 0:00:00]} Nf6 {[%emt 0:02:58]} 41. Ke3 {[%emt 0:06:05]} Ng4+ {[%emt 0:02:14] Ke4+} 1/2-1/2

[Event "Reykjavik Chess Congress 2018"]
[Site "Reykjavik"]
[Date "2018.01.21"]
[Round "4"]
[White "Mai, Alexander Oliver"]
[Black "Viglundsson, Bjorgvin"]
[Result "1-0"]
[ECO "B01"]
[WhiteElo "1970"]
[BlackElo "2167"]
[Annotator "NA"]
[PlyCount "62"]
[EventDate "2018.??.??"]
[EventType "swiss"]
[EventCountry "ISL"]
[SourceTitle "playchess.com"]
[Source "ChessBase"]
[SourceQuality "1"]
[TimeControl "40/5400+30:900+30"]

1. e4 {[%emt 0:00:00]} d5 {[%emt 0:01:01]} 2. exd5 {[%emt 0:00:00]} Qxd5 {[%emt 0:00:43]} 3. Nc3 {[%emt 0:00:00]} Qd8 {[%emt 0:00:07]} 4. d4 {[%emt 0:00:31]} Nf6 {[%emt 0:03:28]} 5. Nf3 {[%emt 0:02:25]} Bg4 {[%emt 0:02:54]} 6. h3 {[%emt 0:04:19]} Bxf3 {[%emt 0:03:48] B01: Scandinavian Defence} 7. Qxf3 {[%emt 0:00:22]} c6 {[%emt 0:00:02]} 8. Be3 {[%emt 0:02:19]} (8. Ne2 e6 9. g4 Qd5 10. Bg2 Nbd7 11. Qg3 Qc4 12. Qb3 Qxb3 13. axb3 Bd6 14. c4 {0-1 (50) Caruana,F (2801)-Carlsen,M (2877) Tromsoe 2014}) 8... e6 {[%emt 0:00:09]} 9. Bd3 {[%emt 0:02:00]} Nbd7 {[%emt 0:00:12]} 10. O-O {[%emt 0:02:46]} Be7 {[%emt 0:00:38]} 11. Rad1 {[%emt 0:09:18]} O-O {[%emt 0:00:52]} 12. Ne4 {[%emt 0:05:58]} Nxe4 {[%emt 0:01:31]} 13. Qxe4 {[%emt 0:01:10]} Nf6 {[%emt 0:00:15]} 14. Qf3 {[%emt 0:01:37]} Qd5 $146 {[%emt 0:01:08]} 15. Qxd5 {[%emt 0:02:08]} cxd5 {[%emt 0:00:10]} 16. f4 {[%emt 0:11:18]} g6 {[%emt 0:03:05]} 17. Kf2 {[%emt 0:02:50]} Nd7 {[%emt 0:07:45]} 18. g4 {[%emt 0:02:44]} f5 {[%emt 0:00:44]} 19. g5 {[%emt 0:05:46]} Rfc8 {[%emt 0:03:13]} 20. h4 {[%emt 0:06:06]} a6 {[%emt 0:01:17]} 21. h5 {[%emt 0:05:09]} b5 {[%emt 0:04:01]} 22. hxg6 {[%emt 0:00:49]} hxg6 {[%emt 0:00:03]} 23. Rh1 {[%emt 0:02:19]} Bf8 {[%emt 0:00:23]} 24. Bd2 {[%emt 0:03:09]} Bg7 {[%emt 0:00:48]} 25. Ke3 {[%emt 0:02:01]} Nb6 {[%emt 0:09:13]} 26. b3 {[%emt 0:00:39]} Rc6 $16 {[%emt 0:03:05]} 27. Bb4 {[%emt 0:01:28]} Nc8 {[%emt 0:03:11]} 28. Bc5 {[%emt 0:01:04]} Nd6 {[%emt 0:00:20]} 29. Bxd6 {[%emt 0:00:34]} Rxd6 {[%emt 0:00:02]} 30. Ra1 {[%emt 0:03:00]} Rc8 {[%emt 0:08:00]} 31. a4 {[%emt 0:01:06]} b4 {[%emt 0:00:14] Ke4} 1-0

[Event "Reykjavik Chess Congress 2018"]
[Site "Reykjavik"]
[Date "2018.01.21"]
[Round "4"]
[White "Baldursson, Haraldur"]
[Black "Stefansson, Vignir Vatnar"]
[Result "0-1"]
[ECO "A88"]
[WhiteElo "1942"]
[BlackElo "2304"]
[Annotator "NA"]
[PlyCount "52"]
[EventDate "2018.??.??"]
[EventType "swiss"]
[EventCountry "ISL"]
[SourceTitle "playchess.com"]
[Source "ChessBase"]
[SourceQuality "1"]
[TimeControl "40/5400+30:900+30"]

1. d4 {[%emt 0:00:00]} f5 {[%emt 0:00:08]} 2. Nf3 {[%emt 0:01:43]} Nf6 {[%emt 0:00:05]} 3. c4 {[%emt 0:01:10]} g6 {[%emt 0:00:04]} 4. Nc3 {[%emt 0:00:43]} Bg7 {[%emt 0:00:05]} 5. g3 {[%emt 0:00:27]} O-O {[%emt 0:00:06]} 6. Bg2 {[%emt 0:00:23]} d6 {[%emt 0:00:11]} 7. O-O {[%emt 0:04:01]} c6 {[%emt 0:00:32]} 8. d5 {[%emt 0:10:24]} e5 {[%emt 0:00:05]} 9. e4 {[%emt 0:14:41]} Na6 {[%emt 0:15:40] LiveBook: 9 Games A88: Dutch Defence: Leningrad System: 5 Nf3 0-0 6 0-0 d6 7 Nc3 c6} (9... cxd5 10. cxd5 Na6 11. exf5 gxf5 12. Nh4 f4 13. a3 Bg4 14. Qc2 Rc8 15. Bd2 b5 16. b4 Rc4 17. h3 {0-1 (57) Kovalenko,I (2694)-Anton Guijarro,D (2630) Reykjavik 2015}) 10. dxc6 {[%emt 0:09:10]} bxc6 {[%emt 0:00:18]} 11. Qe2 $146 {[%emt 0:04:03]} ({Predecessor:} 11. exf5 $11 {bleibt in der Remisbreite.} Bxf5 12. Bg5 Nc5 13. Nd2 Qc7 14. b4 Ne6 15. Bxf6 Bxf6 {1-0 (38) Priehoda,V (2365)-Ruckschloss,K (2315) Sala 1991}) 11... fxe4 {[%emt 0:07:31]} 12. Nxe4 {[%emt 0:05:05]} Nxe4 {[%emt 0:00:26]} 13. Qxe4 {[%emt 0:00:10]} d5 {[%emt 0:04:06]} 14. Qe2 {[%emt 0:04:38]} e4 {[%emt 0:01:49]} 15. Nd2 $2 {[%emt 0:00:39]} (15. Ng5 $15) 15... Nb4 {[%emt 0:06:20]} 16. a3 {[%emt 0:09:09]} Nc2 {[%emt 0:01:48]} 17. Ra2 {[%emt 0:05:07]} Nd4 {[%emt 0:02:20]} 18. Qd1 {[%emt 0:08:24]} Nf5 {[%emt 0:02:44]} 19. Nb3 $2 {[%emt 0:05:37]} (19. b4 $1 $11 {und Weiss ist OK.}) 19... Ba6 {[%emt 0:00:35]} 20. Nd2 {[%emt 0:07:07]} e3 {[%emt 0:07:25]} 21. fxe3 {[%emt 0:01:12]} Qb6 {[%emt 0:00:12]} 22. cxd5 {[%emt 0:04:02]} (22. Kh1 $142 Nxe3 23. Rxf8+ Rxf8 24. Qg1) 22... Nxe3 {[%emt 0:01:42]} 23. Rxf8+ {[%emt 0:00:40]} Rxf8 {[%emt 0:00:02]} 24. Qb3 {[%emt 0:01:51]} Qxb3 {[%emt 0:00:52]} 25. Nxb3 {[%emt 0:00:10]} Nxg2 {[%emt 0:00:05]} 26. Nc5 {[%emt 0:01:18]} Bd4+ {[%emt 0:00:07]} 0-1

[Event "Reykjavik Chess Congress 2018"]
[Site "Reykjavik"]
[Date "2018.01.25"]
[Round "5"]
[White "Ptacnikova, Lenka"]
[Black "Mai, Alexander Oliver"]
[Result "1-0"]
[ECO "A13"]
[WhiteElo "2218"]
[BlackElo "1970"]
[Annotator "RC"]
[PlyCount "159"]
[EventDate "2018.??.??"]
[EventType "swiss"]
[EventCountry "ISL"]
[SourceTitle "playchess.com"]
[Source "ChessBase"]
[SourceQuality "1"]
[TimeControl "40/5400+30:900+30"]

1. c4 {[%emt 0:00:55]} e6 {[%emt 0:00:52]} 2. Nf3 {[%emt 0:00:13]} Nf6 {[%emt 0:00:45]} 3. e3 {[%emt 0:05:27]} d5 {[%emt 0:00:28]} 4. b3 {[%emt 0:00:18]} Be7 {[%emt 0:00:13]} 5. Bb2 {[%emt 0:00:07]} O-O {[%emt 0:00:21]} 6. Be2 {[%emt 0:00:05]} b6 {[%emt 0:01:31]} 7. O-O {[%emt 0:00:12]} Bb7 {[%emt 0:00:23]} 8. cxd5 {[%emt 0:01:29]} exd5 {[%emt 0:01:05]} 9. d4 {[%emt 0:00:17]} Nbd7 {[%emt 0:02:05]} 10. Nc3 {[%emt 0:00:33]} Re8 {[%emt 0:06:49]} 11. Rc1 {[%emt 0:01:13]} c6 {[%emt 0:02:20]} 12. Rc2 {[%emt 0:01:56]} Bd6 {[%emt 0:01:24]} 13. Qc1 {[%emt 0:00:41]} Qe7 {[%emt 0:02:38]} 14. Rd1 {[%emt 0:08:05]} Rac8 {[%emt 0:11:19]} 15. a3 {[%emt 0:05:16]} a5 {[%emt 0:03:50]} 16. Na4 {[%emt 0:01:12]} b5 {[%emt 0:05:07]} 17. Nc5 {[%emt 0:00:32]} Bxc5 {[%emt 0:04:52]} 18. dxc5 {[%emt 0:03:51]} Ne4 {[%emt 0:02:29]} 19. Bd4 {[%emt 0:05:49]} Nf8 {[%emt 0:01:42]} 20. b4 {[%emt 0:05:42]} a4 {[%emt 0:04:35]} 21. Bd3 {[%emt 0:04:44]} Ng6 {[%emt 0:03:09]} 22. Qb2 {[%emt 0:01:32]} f6 {[%emt 0:04:38]} 23. Qa2 {[%emt 0:04:34]} Rcd8 {[%emt 0:02:04]} 24. Ba1 {[%emt 0:10:42]} Qf7 {[%emt 0:08:22]} 25. Rcc1 {[%emt 0:05:50]} Bc8 {[%emt 0:05:27]} 26. Nd4 {[%emt 0:03:20]} Bd7 {[%emt 0:00:17]} 27. f3 {[%emt 0:16:44]} Ng5 {[%emt 0:00:28]} 28. Qf2 {[%emt 0:06:39]} Ne7 {[%emt 0:02:06]} 29. h4 {[%emt 0:02:52]} Ne6 {[%emt 0:00:07]} 30. Nc2 {[%emt 0:01:59]} Ng6 {[%emt 0:01:17]} 31. f4 {[%emt 0:01:00]} Nef8 {[%emt 0:03:37]} 32. Nd4 {[%emt 0:00:10]} Ne7 {[%emt 0:01:10]} 33. Re1 {[%emt 0:01:31]} Ne6 {[%emt 0:03:25]} 34. Nf3 {[%emt 0:00:16]} Nc7 {[%emt 0:01:10]} 35. Qc2 {[%emt 0:00:22]} Qh5 {[%emt 0:01:08]} 36. Nd4 {[%emt 0:00:55]} Qxh4 {[%emt 0:01:05]} 37. f5 {[%emt 0:00:18]} Qh5 {[%emt 0:02:22]} 38. Rf1 {[%emt 0:00:13]} Kh8 {[%emt 0:05:30]} 39. Rf3 {[%emt 0:00:14]} Ng8 {[%emt 0:02:40]} 40. Rcf1 {[%emt 0:00:00]} Qg5 {[%emt 0:03:22]} 41. Bb2 {[%emt 0:06:44]} Nh6 {[%emt 0:04:40]} 42. Bc1 {[%emt 0:02:02]} Qh5 {[%emt 0:06:00]} 43. Rh3 {[%emt 0:02:18]} Qf7 {[%emt 0:00:02]} 44. Rf4 {[%emt 0:03:52]} Rg8 {[%emt 0:00:42]} 45. Rfh4 {[%emt 0:00:24]} Rde8 {[%emt 0:00:50]} 46. g4 {[%emt 0:01:21]} Re7 {[%emt 0:00:18]} 47. Qh2 {[%emt 0:00:12]} Ne8 {[%emt 0:00:53]} 48. Bd2 {[%emt 0:00:15]} Re4 {[%emt 0:00:45]} 49. Be1 {[%emt 0:02:29]} Qe7 {[%emt 0:00:44]} 50. Bf2 {[%emt 0:00:24]} Qe5 {[%emt 0:00:48]} 51. Bg3 {[%emt 0:00:25]} Qe7 {[%emt 0:00:31]} 52. Bf4 {[%emt 0:00:18]} Rxd4 {[%emt 0:03:25]} 53. exd4 {[%emt 0:00:16]} Qe1+ {[%emt 0:00:08]} 54. Bf1 {[%emt 0:00:20]} Qe4 {[%emt 0:00:50]} 55. Qd2 {[%emt 0:01:10]} Qe7 {[%emt 0:00:26]} 56. Bg2 {[%emt 0:00:27]} Bc8 {[%emt 0:00:40]} 57. Qe3 {[%emt 0:01:31]} Qf7 {[%emt 0:00:13]} 58. Kf1 {[%emt 0:00:37]} Bd7 {[%emt 0:00:04]} 59. Qg3 {[%emt 0:00:26]} Qe7 {[%emt 0:00:12]} 60. Bf3 {[%emt 0:00:26]} Qf7 {[%emt 0:00:05]} 61. Qe1 {[%emt 0:00:33]} Bc8 {[%emt 0:00:06]} 62. Rh2 {[%emt 0:00:19]} Qf8 {[%emt 0:00:30]} 63. Bxh6 {[%emt 0:00:52]} gxh6 {[%emt 0:00:04]} 64. Rxh6 {[%emt 0:00:44]} Rg7 {[%emt 0:00:01]} 65. Re2 {[%emt 0:00:22]} Bd7 {[%emt 0:00:14]} 66. Rhh2 {[%emt 0:00:13]} Qg8 {[%emt 0:00:08]} 67. Rh1 {[%emt 0:00:25]} Nc7 {[%emt 0:00:05]} 68. Re7 {[%emt 0:00:21]} Qf8 {[%emt 0:00:53]} 69. Rxg7 {[%emt 0:00:31]} Qxg7 {[%emt 0:00:01]} 70. Qe3 {[%emt 0:00:16]} Ne8 {[%emt 0:00:19]} 71. Rh2 {[%emt 0:00:17]} Nc7 {[%emt 0:00:21]} 72. Re2 {[%emt 0:00:15]} h5 {[%emt 0:00:12]} 73. Rh2 {[%emt 0:00:21]} Be8 {[%emt 0:00:08]} 74. Kf2 {[%emt 0:00:31]} Kg8 {[%emt 0:00:09]} 75. gxh5 {[%emt 0:00:08]} Qh7 {[%emt 0:00:10]} 76. Qf4 {[%emt 0:00:29]} Kf8 {[%emt 0:00:12]} 77. h6 {[%emt 0:00:14]} Na6 {[%emt 0:00:04]} 78. Qd6+ {[%emt 0:00:26]} Kf7 {[%emt 0:00:29]} 79. Bh5+ {[%emt 0:00:43]} Kg8 {[%emt 0:00:01]} 80. Rg2+ {[%emt 0:00:25]} 1-0

[Event "Reykjavik Chess Congress 2018"]
[Site "Reykjavik"]
[Date "2018.01.24"]
[Round "5"]
[White "Bergsson, Stefan"]
[Black "Birkisson, Bjorn Holm"]
[Result "1-0"]
[ECO "B00"]
[WhiteElo "2093"]
[BlackElo "2084"]
[Annotator "NA RC"]
[PlyCount "72"]
[EventDate "2018.??.??"]
[EventType "swiss"]
[EventCountry "ISL"]
[SourceTitle "playchess.com"]
[Source "ChessBase"]
[SourceQuality "1"]
[TimeControl "40/5400+30:900+30"]

{[%evp 9,71,17,32767,32767,32767,32767,32767,0,-6,-14,-4,-25,32767,32767,47,56,32767,48,71,43,66,55,44,33,35,22,82,37,123,99,114,112,224,113,158,133,148,127,143,153,124,156,130,107,151,153,281,281,267,32767,32767,32767,32767,32767,32767,32767,156,-31,0,0,0,-11,70,94]} 1. e4 {[%emt 0:00:00]} Nc6 {[%emt 0:02:28]} 2. Nc3 {[%emt 0:00:24]} d6 {[%emt 0:01:27]} 3. f4 {[%emt 0:00:21]} g6 {[%emt 0:02:53]} 4. Nf3 {[%emt 0:00:11]} Bg7 {[%emt 0:00:12]} 5. Bc4 {[%emt 0:01:57] B07: Pirc Defence: Miscellaneous Systems} (5. d4 Bg4 6. Be3 Bxf3 7. gxf3 e6 8. Qd2 d5 9. O-O-O Nge7 10. Rg1 Qd7 11. Kb1 O-O-O 12. Ne2 Kb8 13. Bh3 dxe4 14. fxe4 f5 15. d5 exd5 16. e5 Qe6 17. c3 d4 18. cxd4 {½-½ (28) Vojta,T (2350)-Turner,J (2364) Prague 2017}) 5... Na5 {[%emt 0:05:25]} 6. Bb5+ {[%emt 0:01:49]} Bd7 $146 {[%emt 0:07:14]} ({Find the theoretical novelty and annotate with similar games:} 6... c6 7. Be2 c5 8. O-O e6 9. d4 cxd4 10. Nxd4 Ne7 11. Ndb5 d5 12. exd5 exd5 13. Nxd5 Nxd5 14. Qxd5 {0-1 (30) Ebelshaeuser,P-Thomas,A Mehlingen 1992}) 7. Be2 {[%emt 0:00:52]} c5 {[%emt 0:02:48]} 8. O-O {[%emt 0:04:29]} Nc6 {[%emt 0:09:12]} 9. Kh1 {[%emt 0:03:45]} Nh6 {[%emt 0:04:45]} 10. Qe1 {[%emt 0:09:54]} Nd4 {[%emt 0:07:13]} 11. Bd1 {[%emt 0:00:38]} e5 {[%emt 0:17:35]} ({Black should try} 11... e6 $15) 12. d3 {[%emt 0:08:35]} O-O {[%emt 0:09:33]} 13. fxe5 {[%emt 0:17:41]} Nxf3 {[%emt 0:00:37]} 14. Bxf3 {[%emt 0:00:20]} dxe5 {[%emt 0:00:09]} 15. Be3 {[%emt 0:04:13]} Rc8 {[%emt 0:11:23]} 16. h3 {[%emt 0:09:19]} Kh8 {[%emt 0:06:58]} 17. a4 {[%emt 0:04:14]} Ng8 {[%emt 0:01:56]} 18. a5 {[%emt 0:03:54]} b5 {[%emt 0:02:32]} (18... Be6 $11 {remains equal.}) 19. Qf2 {[%emt 0:01:39]} Qc7 {[%emt 0:01:31]} 20. Nd5 {[%emt 0:01:03]} Qc6 {[%emt 0:00:31]} (20... Qd6 $16 {might work better.}) 21. Rfc1 {[%emt 0:02:00]} (21. b4 $18 {and White stays clearly on top.}) 21... Rfe8 {[%emt 0:02:20]} (21... f5 $142) 22. c3 {[%emt 0:02:51]} a6 {[%emt 0:00:32]} 23. Nb6 {[%emt 0:00:28]} Rc7 {[%emt 0:00:08]} 24. d4 {[%emt 0:04:20]} c4 {[%emt 0:00:09]} 25. Nd5 {[%emt 0:01:42]} Rcc8 {[%emt 0:00:31]} 26. Qh4 {[%emt 0:01:48]} Rb8 {[%emt 0:02:33]} (26... exd4 $142 27. cxd4 (27. Bxd4 Qb7 $16) 27... Qe6) 27. Rf1 {[%emt 0:01:00]} f5 {[%emt 0:00:43]} (27... Qb7 $16 {was called for.} 28. Nb6 exd4 29. cxd4 Bc6) 28. exf5 {[%emt 0:00:50]} Bxf5 {[%emt 0:00:10]} 29. dxe5 {[%emt 0:02:45]} Bxe5 {[%emt 0:00:37]} 30. Bd4 {[%emt 0:00:12]} Qd7 {[%emt 0:00:19]} 31. Nb6 {[%emt 0:05:11]} Qg7 {[%emt 0:00:43]} 32. Bc6 {[%emt 0:00:26]} Bxd4 {[%emt 0:00:51]} ({Better is} 32... Rf8) 33. cxd4 $2 {[%emt 0:04:46]} ({Weiss braucht} 33. Bxe8 $18 Bf6 34. Qe1) 33... Re2 {[%emt 0:00:19]} 34. Rae1 {[%emt 0:01:56]} Rxb2 {[%emt 0:00:20]} 35. d5 {[%emt 0:00:20]} Rd2 $14 {[%emt 0:00:15]} (35... Bd3 $11 36. Rf3 g5) 36. Qf4 {[%emt 0:00:15]} Bxh3 1-0

[Event "Reykjavik Chess Congress 2018"]
[Site "Reykjavik"]
[Date "2018.01.31"]
[Round "6"]
[White "Baldursson, Haraldur"]
[Black "Halldorsson, Bragi"]
[Result "0-1"]
[ECO "D17"]
[WhiteElo "1942"]
[BlackElo "2082"]
[Annotator "NA RC"]
[PlyCount "59"]
[EventDate "2018.??.??"]
[EventType "swiss"]
[EventCountry "ISL"]
[SourceTitle "playchess.com"]
[Source "ChessBase"]
[SourceQuality "1"]
[TimeControl "40/5400+30:900+30"]

1. d4 {[%emt 0:09:09]} Nf6 {[%emt 0:01:18]} 2. Nf3 {[%emt 0:00:22]} d5 {[%emt 0:00:44]} 3. c4 {[%emt 0:01:32]} c6 {[%emt 0:00:12]} 4. Nc3 {[%emt 0:02:11]} dxc4 {[%emt 0:01:50]} 5. a4 {[%emt 0:02:04]} Bf5 {[%emt 0:00:55]} 6. Ne5 {[%emt 0:05:13]} Na6 {[%emt 0:00:31]} 7. f3 {[%emt 0:03:05]} Nd7 {[%emt 0:01:43]} 8. Nxc4 {[%emt 0:09:12]} e5 {[%emt 0:02:29]} 9. e4 {[%emt 0:09:37]} exd4 {[%emt 0:00:40]} 10. Qxd4 {[%emt 0:03:14]} Nb4 {[%emt 0:01:29]} 11. Qd1 {[%emt 0:11:47]} Be6 {[%emt 0:00:20]} 12. Bf4 {[%emt 0:03:51]} Nc5 {[%emt 0:01:10]} 13. Nd6+ {[%emt 0:22:25]} Bxd6 {[%emt 0:00:17]} 14. Bxd6 {[%emt 0:00:39]} Ncd3+ {[%emt 0:00:43]} 15. Bxd3 {[%emt 0:00:29]} Qxd6 {[%emt 0:00:11]} 16. Be2 {[%emt 0:04:40]} Qc5 {[%emt 0:00:41]} 17. Ra3 {[%emt 0:03:11]} Rd8 {[%emt 0:01:34]} 18. Qc1 {[%emt 0:03:40]} O-O {[%emt 0:00:49]} 19. Kf1 {[%emt 0:00:53]} Rd7 {[%emt 0:03:16]} 20. Na2 {[%emt 0:01:29]} Qxc1+ {[%emt 0:00:42]} 21. Nxc1 {[%emt 0:00:02]} Rd2 {[%emt 0:00:19]} 22. b3 {[%emt 0:01:00]} Rfd8 {[%emt 0:01:54]} 23. Kf2 {[%emt 0:00:56]} Rb2 {[%emt 0:01:38]} 24. Kg3 {[%emt 0:00:29]} Rdd2 {[%emt 0:01:19]} 25. Bf1 {[%emt 0:00:45]} Nc2 {[%emt 0:01:17]} 26. Ra2 {[%emt 0:00:15]} Rxa2 {[%emt 0:01:02]} 27. Nxa2 {[%emt 0:00:03]} Ne3 {[%emt 0:02:30]} 28. Nc3 {[%emt 0:00:45]} Bxb3 {[%emt 0:00:40]} 29. Kf4 {[%emt 0:00:28]} Nd1 {[%emt 0:02:14]} 30. Be2 0-1

[Event "Reykjavik Chess Congress 2018"]
[Site "Reykjavik"]
[Date "2018.01.31"]
[Round "6"]
[White "Ulfljotsson, Jon"]
[Black "Stefansson, Vignir Vatnar"]
[Result "1/2-1/2"]
[ECO "A88"]
[WhiteElo "1687"]
[BlackElo "2304"]
[Annotator "NA RC"]
[PlyCount "63"]
[EventDate "2018.??.??"]
[EventType "swiss"]
[EventCountry "ISL"]
[SourceTitle "playchess.com"]
[Source "ChessBase"]
[SourceQuality "1"]
[TimeControl "40/5400+30:900+30"]

1. d4 {[%emt 0:00:00]} f5 {[%emt 0:00:33]} 2. Nf3 {[%emt 0:00:05]} Nf6 {[%emt 0:00:29]} 3. g3 {[%emt 0:00:24]} g6 {[%emt 0:00:30]} 4. Bg2 {[%emt 0:01:12]} Bg7 {[%emt 0:00:37]} 5. O-O {[%emt 0:01:13]} O-O {[%emt 0:00:25]} 6. c4 {[%emt 0:02:01]} d6 {[%emt 0:00:29]} 7. Nc3 {[%emt 0:01:45]} c6 {[%emt 0:00:30]} 8. Qc2 {[%emt 0:01:23]} Na6 {[%emt 0:02:59]} 9. a3 {[%emt 0:02:15]} Qe8 {[%emt 0:01:52]} 10. Bg5 {[%emt 0:07:02]} e5 {[%emt 0:03:07]} 11. Bxf6 {[%emt 0:05:10]} Bxf6 {[%emt 0:00:09]} 12. e3 {[%emt 0:04:41]} Be6 {[%emt 0:02:20]} 13. b3 {[%emt 0:03:59]} g5 {[%emt 0:03:07]} 14. d5 {[%emt 0:05:48]} Bd7 {[%emt 0:00:28]} 15. Rad1 {[%emt 0:02:48]} g4 {[%emt 0:00:43]} 16. Nd2 {[%emt 0:01:51]} e4 {[%emt 0:00:10]} 17. b4 {[%emt 0:03:30]} Qh5 {[%emt 0:00:15]} 18. Nb3 {[%emt 0:01:12]} Be5 {[%emt 0:00:18]} 19. c5 {[%emt 0:03:13]} dxc5 {[%emt 0:00:39]} 20. Nxc5 {[%emt 0:01:35]} Nxc5 {[%emt 0:00:06]} 21. bxc5 {[%emt 0:00:08]} Qf7 {[%emt 0:02:25]} 22. Rb1 {[%emt 0:04:34]} Rab8 {[%emt 0:00:22]} 23. dxc6 {[%emt 0:05:43]} Bxc6 {[%emt 0:00:12]} 24. Ne2 {[%emt 0:00:29]} Rbd8 {[%emt 0:02:02]} 25. Rfd1 {[%emt 0:02:13]} a6 {[%emt 0:01:30]} 26. Bf1 {[%emt 0:03:44]} Bb5 {[%emt 0:00:06]} 27. Nf4 {[%emt 0:01:56]} Bxf1 {[%emt 0:00:30]} 28. Kxf1 {[%emt 0:00:08]} Rc8 {[%emt 0:04:33]} 29. Rb6 {[%emt 0:05:06]} Rfd8 {[%emt 0:04:19]} 30. Rxd8+ {[%emt 0:01:53]} Rxd8 {[%emt 0:00:04]} 31. c6 {[%emt 0:00:21]} Rc8 {[%emt 0:01:54]} 32. Qa4 {[%emt 0:02:37]} 1/2-1/2